Cogmind - Beta 17.1 @@@ ROGUE MODE // 2026.09.05 @ 20:23:56 Player: s0rry Result: Self-destructed Performance ------------- Evolutions (2) 1000 Regions Visited (3) 600 Robots Destroyed (30) 150 Value Destroyed (953) 953 Prototype IDs (0) 0 Alien Tech Used (0) 0 Bonus (0) 0 TOTAL SCORE: 2703 Bonus ------- None Cogmind --------- Core Integrity 507/550 Matter 250/300 Energy 265/265 System Corruption 0% Temperature Warm (181) Movement Treading (160) Location -8/Materials Parts ------- > --- POWER (1) -------- Improved Ion Engine > --- PROPULSION (6) --- Light Treads Light Treads Aluminum Leg > --- UTILITY (2) ------ Small Storage Unit Hardened Light Armor Plating > --- WEAPON (2) ------- Particle Gun > --- INVENTORY (8) ---- Ion Engine Ion Engine Beam Rifle Light EM Pulse Cannon Heavy Assault Rifle Heavy Assault Rifle Improved Datajack Peak State ------------ > --- POWER ------------ Improved Ion Engine > --- PROPULSION ------- Light Treads Light Treads Light Treads Light Treads > --- UTILITY ---------- Small Storage Unit Hacking Suite > --- WEAPON ----------- Beam Rifle Improved Datajack > --- INVENTORY -------- Ion Engine Ion Engine Hardened Light Armor Plating Particle Gun Light EM Pulse Cannon Heavy Assault Rifle Heavy Assault Rifle Grenade Launcher [Rating: 16] Favorites ----------- Power Improved Ion Engine Engine Improved Ion Engine Propulsion Light Treads Treads Light Treads Leg Aluminum Leg Utility Small Storage Unit Device Terrain Scanner Storage Small Storage Unit Hackware Hacking Suite Protection Utility Shielding Weapon Assault Rifle Energy Gun Beam Rifle Ballistic Gun Assault Rifle Launcher Grenade Launcher Special Melee Weapon Improved Datajack Build | -11 -10 -9 -8 ------- Run | Yrd Mat Mat Mat Slots Evolved 4 | . . 2 2 Power . | . . . . Propulsion 4 | . . 2 2 Utility . | . . . . Weapon . | . . . . Parts Attached 32 | 6 8 15 3 Power 5 | 1 2 2 . Engine 5 | 1 2 2 . Core . | . . . . Reactor . | . . . . Propulsion 8 | 2 1 4 1 Treads 7 | 2 1 4 . Leg 1 | . . . 1 Wheel . | . . . . Hover . | . . . . Flight . | . . . . Utility 8 | 1 3 3 1 Device 1 | . 1 . . Storage 1 | 1 . . . Processor . | . . . . Hackware 1 | . . . 1 Protection 5 | . 2 3 . Artifact . | . . . . Weapon 11 | 2 2 6 1 Energy Gun 5 | 1 . 4 . Energy Cannon . | . . . . Ballistic Gun 4 | 1 1 2 . Ballistic Cannon . | . . . . Launcher 1 | . 1 . . Special Weapon . | . . . . Impact Weapon . | . . . . Slashing Weapon . | . . . . Piercing Weapon . | . . . . Special Melee Weapon 1 | . . . 1 Unidentified Prototypes . | . . . . Parts Lost 4 | . . 1 3 Power . | . . . . Propulsion 2 | . . . 2 Utility . | . . . . Weapon 2 | . . 1 1 Highest Loss Streak 2 | . . 1 2 To Critical Strikes . | . . . . Average Backups 7 | 1 6 7 7 Power 2 | . 2 3 2 Propulsion . | . . . . Utility . | . . 1 . Weapon 3 | . 2 3 4 Tool/Special . | . . . . Unused Backups 5 | . 1 1 3 Power 3 | . 1 1 1 Propulsion . | . . . . Utility 1 | . . . 1 Weapon 1 | . . . 1 Tool/Special . | . . . . Average Slot Usage (%) 93 | . 97 97 76 Engine 11 | . 14 11 9 Treads 35 | . 28 42 31 Device 1 | . 4 . . Storage 11 | . 14 11 9 Protection 8 | . 7 11 4 Energy Gun 8 | . 6 9 9 Ballistic Gun 14 | . 21 12 8 Peak Build Rating 16 | 6 7 14 16 Average Rating 10 | 4 6 11 13 On Entrance 6 | . 6 7 14 Avg Prop Armor Cover (%) . | . . . . Naked Turns . | . . . . Heaviest Build 23 | 13 16 23 23 Greatest Support 80 | 40 40 80 80 Greatest Overweight (x) . | . . . . Average Overweight (x) . | . . . . Largest Inventory Capacity 8 | 8 8 8 8 Average Capacity 7 | 6 8 8 8 Most Carried 8 | 2 8 8 8 Average Carried 7 | 1 6 7 7 Final Capacity 8 | 8 8 8 8 Final Carried 8 | 2 8 8 7 Class Distribution -------------------- 55% | Scavenger-Mutant 44% | Mutant Dominant Class ---------------- Mutant | -10/Materials Scavenger-Mutant | -9/Materials Scavenger-Mutant | -8/Materials Resources | -11 -10 -9 -8 ----------- Run | Yrd Mat Mat Mat Matter Collected 804 | 221 164 355 64 Remotely . | . . . . Salvage Created 1138 | . 183 790 165 Parts 64 | . 13 43 8 Haulers Intercepted . | . . . . Recyclers Shooed . | . . . . Parts Field Recycled . | . . . . Retrieved Matter . | . . . . Parts Self-Destructed . | . . . . Prevented . | . . . . Parts Restored . | . . . . Kills | -11 -10 -9 -8 ------- Run | Yrd Mat Mat Mat Combat Hostiles Destroyed 27 | . 5 16 6 Guns 22 | . 2 16 4 AOE 5 | . 3 . 2 Classes Destroyed 5 | . 3 2 . Recycler 1 | . 1 . . Watcher 2 | . . 2 . Swarmer 6 | . 3 . 3 Grunt 15 | . 2 10 3 Sentry 6 | . . 6 . Best Kill Streak 4 | . 4 3 4 Combat Bots Only 4 | . 3 3 4 Max Kills in Single Turn 2 | . 2 1 1 Gunslinging . | . . . . Exploded 1 | . 1 . 1 Melee . | . . . . Uniques/NPCs Destroyed . | . . . . Combat | -11 -10 -9 -8 -------- Run | Yrd Mat Mat Mat Hostile Shots Fired 152 | . 23 88 41 Missed 42 | . 6 26 10 Hits 110 | . 17 62 31 Projectile 110 | . 17 62 31 Damage Taken 1497 | . 173 851 473 Core 153 | . 36 74 43 Absorbed by Shields . | . . . . Redirected to Shielding 2 | . 2 . . Core Remaining (%) 88 | 100 85 81 . Volleys Fired 81 | . 12 53 16 Largest 2 | . 2 2 2 Hottest 95 | . 60 88 95 Shots Fired 159 | . 24 104 31 Gun 153 | . 20 104 29 Cannon . | . . . . Launcher 6 | . 4 . 2 Special . | . . . . Kinetic 78 | . 12 53 13 Thermal 75 | . 8 51 16 Explosive 6 | . 4 . 2 Electromagnetic . | . . . . Robot Hit Streak 17 | . 8 17 11 Robot Miss Streak 4 | . 2 4 3 Penetration Max . | . . . . Secondary Targets . | . . . . Shots Hit Robots 107 | . 16 70 21 Core Hits 54 | . 9 34 11 Critical Kills . | . . . . Critical Parts Destroyed . | . . . . Critical Strikes 4 | . . 3 1 Burn 4 | . . 3 1 Melee Attacks 1 | . . . 1 Impact . | . . . . Slashing . | . . . . Piercing . | . . . . Sneak Attacks . | . . . . Combat Hostiles . | . . . . Follow-up Attacks . | . . . . Damage Inflicted 1872 | . 411 976 485 Guns 1452 | . 156 976 320 Cannons . | . . . . Explosions 420 | . 255 . 165 Melee . | . . . . Ramming . | . . . . Kinetic 719 | . 101 476 142 Thermal 733 | . 55 500 178 Explosive 420 | . 255 . 165 Electromagnetic . | . . . . Impact . | . . . . Slashing . | . . . . Piercing . | . . . . Highest Corruption . | . . . . Average Corruption . | . . . . Corruption Purged . | . . . . Corruption Blocked . | . . . . Overload Shots . | . . . . Overflow Damage . | . . . . Projectiles . | . . . . Explosions . | . . . . Melee . | . . . . Knockbacks . | . . . . Impact . | . . . . Kinetic . | . . . . Secondary . | . . . . Self-Inflicted Damage 78 | . 21 . 57 Shots 3 | . 1 . 2 Rammed . | . . . . Targets Rammed . | . . . . Kicked . | . . . . Crushed . | . . . . Highest Temperature 267 | . 18 267 172 Average Temperature 66 | . 11 66 87 Received Heat Transfer 609 | . 36 357 216 Siege Activations . | . . . . Martial Activations . | . . . . Shielding Activations . | . . . . Robots Disrupted . | . . . . Combat Hostiles . | . . . . Robots Corrupted . | . . . . Combat Hostiles . | . . . . Parts Fried . | . . . . Impact Corruptions . | . . . . Robots Melted . | . . . . Combat Hostiles . | . . . . Parts Melted 3 | . 1 2 . Heat Transferred 2163 | . 125 1520 518 Parts Sabotaged . | . . . . Parts Stolen . | . . . . Parts Stripped . | . . . . Power Chain Reactions . | . . . . Alert | -11 -10 -9 -8 ------- Run | Yrd Mat Mat Mat Maximum Alert Level . | . . . . Low Security (%) 100 | 100 100 100 100 Level 1 . | . . . . Level 2 . | . . . . Level 3 . | . . . . Level 4 . | . . . . Level 5 . | . . . . High Security . | . . . . Max Security . | . . . . Peak Influence 119 | . 85 119 108 Initial 29 | . . . 29 Average 22 | . 15 33 8 Influence Increases 721 | . 137 428 156 Destroy 0b10 Robot/C 540 | . 100 320 120 Destroy 0b10 Robot/NC 15 | . 5 10 . Destroy Leader 114 | . 10 94 10 Successful Hack 2 | . 2 . . Disable Machine 15 | . . . 15 Destroy Structure 35 | . 20 4 11 Influence Decreases 623 | . 137 357 129 Entered New Map 42 | . . . 42 Time Decay 561 | . 137 357 67 Lost Part 20 | . . . 20 Squads Dispatched 1 | . . 1 . Investigation 1 | . . 1 . Extermination . | . . . . Reinforcement . | . . . . Assault . | . . . . Garrison . | . . . . Intercept . | . . . . Searches Triggered . | . . . . Construction Impeded . | . . . . Haulers Reinforced . | . . . . Active Scanning Responses . | . . . . Cargo Convoy Interrupts . | . . . . Stealth | -11 -10 -9 -8 --------- Run | Yrd Mat Mat Mat Distress Signals 5 | . . 4 1 Communications Jammed . | . . . . Distress Signals . | . . . . Times Spotted 42 | . 6 25 11 Peak Tracking Total 6 | . 3 4 6 Tactical Retreats . | . . . . Traps | -11 -10 -9 -8 ------- Run | Yrd Mat Mat Mat Traps Triggered 2 | . . 2 . Indirectly . | . . . . Trap Hack Attempts . | . . . . Triggered . | . . . . Disarmed . | . . . . Reprogrammed . | . . . . Reused . | . . . . Traps Extracted . | . . . . Installed . | . . . . Triggered . | . . . . Machines | -11 -10 -9 -8 ---------- Run | Yrd Mat Mat Mat Machines Disabled 1 | . . . 1 Max in Single Turn 1 | . . . 1 Machines Repaired . | . . . . Machines Dismantled . | . . . . Machines Sabotaged . | . . . . Overloaded Fab Kills . | . . . . Hacking | -11 -10 -9 -8 --------- Run | Yrd Mat Mat Mat Machines Accessed 4 | . 3 1 . Terminals 3 | . 2 1 . Fabricators . | . . . . Repair Stations . | . . . . Recycling Units 1 | . 1 . . Scanalyzers . | . . . . Garrison Access . | . . . . Total Hacks 7 | . 5 2 . Successful 6 | . 4 2 . Failed 1 | . 1 . . Catastrophic . | . . . . Database Lockouts . | . . . . Manual . | . . . . Terminals 4 | . 2 2 . Fabricators . | . . . . Repair Stations . | . . . . Recycling Units 3 | . 3 . . Scanalyzers . | . . . . Garrison Access . | . . . . Terminal Hacks 4 | . 2 2 . Record 2 | . 2 . . Terminal Index 1 | . . 1 . Alert Level 1 | . . 1 . Fabricator Hacks . | . . . . Repair Station Hacks . | . . . . Recycling Unit Hacks 2 | . 2 . . Report Inventory 1 | . 1 . . Retrieve Components 1 | . 1 . . Scanalyzer . | . . . . Garrison Access Hacks . | . . . . Unauthorized Hacks . | . . . . Terminals . | . . . . Fabricators . | . . . . Repair Stations . | . . . . Recycling Units . | . . . . Scanalyzers . | . . . . Garrison Access . | . . . . Data Cores Recovered . | . . . . Used . | . . . . Hacking Detections . | . . . . Full Trace Events . | . . . . Feedback Events . | . . . . Feedback Blocked . | . . . . Robot Schematics Acquired . | . . . . Robots Built . | . . . . Authchips . | . . . . Time . | . . . . Total Robot Build Rating . | . . . . Part Schematics Acquired . | . . . . Parts Built . | . . . . Authchips . | . . . . Time . | . . . . Total Part Build Rating . | . . . . Part Studies Acquired . | . . . . Parts Repaired . | . . . . Time . | . . . . Parts Recycled . | . . . . Recycled Matter . | . . . . Retrieved Matter . | . . . . Retrieved Components 2 | . 2 . . Parts Scanalyzed . | . . . . Part Schematics Acquired . | . . . . Parts Damaged . | . . . . Bothacking | -11 -10 -9 -8 ------------ Run | Yrd Mat Mat Mat Used RIF Installer . | . . . . Robots Hacked 1 | . . . 1 Non-combat . | . . . . Combat 1 | . . . 1 Robot Hacks Applied 1 | . . . 1 parse_system 1 | . . . 1 Relay Couplers Released . | . . . . Fabnet Peak Effective % . | . . . . Robots Rewired . | . . . . Allies Hacked . | . . . . Hacks Repelled . | . . . . Allies | -11 -10 -9 -8 -------- Run | Yrd Mat Mat Mat Total Allies . | . . . . Largest Group . | . . . . Highest-Rated Group . | . . . . Highest-Rated Ally . | . . . . Total Orders . | . . . . Ally Attacks . | . . . . Total Damage . | . . . . Kills . | . . . . Allies Corrupted . | . . . . Allies Melted . | . . . . Intel | -11 -10 -9 -8 ------- Run | Yrd Mat Mat Mat Active Infowar (turns) 189 | . 189 . . Terrain 189 | . 189 . . Robot Analysis Total . | . . . . Derelict Logs Recovered . | . . . . Drone Launches . | . . . . Drone Recoveries . | . . . . Exploration | -11 -10 -9 -8 ------------- Run | Yrd Mat Mat Mat Turns Passed 2283 | 115 637 1123 408 Spaces Moved 1154 | 70 355 527 202 Core 6 | 6 . . . Treads 1148 | 64 355 527 202 Legs . | . . . . Wheels . | . . . . Hover . | . . . . Flight . | . . . . Fastest Speed 50 | 50 160 160 160 Average Speed 159 | 150 160 160 160 Slowest Speed 160 | 160 160 160 160 Overloaded Moves . | . . . . Propulsion Burnouts . | . . . . Robots Hopped . | . . . . Potential Cave-ins . | . . . . Cave-ins Triggered . | . . . . Exploration Rate (%) 22 | 4 42 30 15 Regions Visited 3 Branch Regions . Pre-discovered Areas . | . . . . Known Exits Taken . | . . . . Unknown Exits Taken 3 | 1 1 1 . Scrap Searched . | . . . . Spaces Dug . | . . . . Terrain Destroyed 25 | . 16 . 9 Melee . | . . . . Projectile . | . . . . AOE 25 | . 16 . 9 Terrain Rammed . | . . . . Walls Destroyed . | . . . . Machines Disabled . | . . . . Actions | -11 -10 -9 -8 --------- Run | Yrd Mat Mat Mat Total 1440 | 77 399 710 254 Wait 137 | . 16 99 22 Move 1151 | 69 354 526 202 Hop . | . . . . Pick Up 11 | 2 4 3 2 Fast Attach 12 | 6 2 2 2 Attach 3 | . . 2 1 Detach 1 | . 1 . . Swap 23 | . 7 12 4 Drop 20 | . 3 13 4 Fire 81 | . 12 53 16 Melee 1 | . . . 1 Ram . | . . . . Kick . | . . . . Crush . | . . . . Escape Stasis . | . . . . Rewire . | . . . . Trap . | . . . . Miscellaneous . | . . . . Route ------- -11/Scrapyard -10/Materials -9/Materials -8/Materials History --------- Turn | Location | Event 3 | -11/Scrapyard | Discovered new exit (range 15) 116 | -11/Scrapyard | Entered Materials 309 | -10/Materials | Build established: Mutant 705 | -10/Materials | Discovered new exit (range 11) 753 | -10/Materials | Entered another Materials area 753 | -9/Materials | Evolved 2 slots: Propulsion x2 1320 | -9/Materials | Build established: Scavenger-Mutant 1860 | -9/Materials | Discovered new exit (range 11) 1876 | -9/Materials | Entered another Materials area 1876 | -8/Materials | Evolved 2 slots: Propulsion x2 2284 | -8/Materials | Self-destructed Last Messages --------------- 02187_ R-06 Scavenger collects Particle Gun. 02190_ K-01 Serf collects debris. 02191_ Discarded Hacking Suite. 02192_ Acquired 64 matter. 02194_ K-01 Serf collects debris. 02203_ R-06 Scavenger inserts Aluminum Leg into recycling unit. 02206_ R-06 Scavenger inserts Imp. Heat Sink into recycling unit. 02214_ R-06 Scavenger inserts Lgt. Nuclear Core into recycling unit. 02217_ R-06 Scavenger inserts Imp. Heat Sink into recycling unit. 02220_ R-06 Scavenger inserts Aluminum Leg into recycling unit. 02223_ R-06 Scavenger inserts Lgt. Nuclear Core into recycling unit. 02224_ Recycling unit begins recycling process. 02265_ G-47 Trooper destroyed. 02267_ U-05 Engineer builds a Door. 02270_ Acquired Aluminum Leg. 02271_ S-10 Pest destroyed. 02276_ Material Processor disabled. 02277_ U-05 Engineer builds a Wall. 02279_ S-10 Pest destroyed. 02282_ Grenade Launcher destroyed. Map ----- +----------------------------------------------------+ | ??????????????????????????? #??????????# #???? | | ??????????????????????????# #?########## #???? | | ??????????????????????????# #?# # #???? | | ??????????????????????????# #?#""" !# #???? | | ??????????????????????????# #?#""" ] # #???? | | ??????????????????????????# #?#""" # #???? | | ??????????????????????????# #?# # #???? | | ????????????????########### #?#""" ! + #???? | | ????????????????# # #?#""" # #???? | | ????????????????# """ # #?#""" * # #???? | | ????????????????# "Y" # #?# # #???? | | ????????????????# + #?########## #???? | | ????????????????# """" # #??????????# #???? | | ????????????????# """" # #??????????# #???? | | ????????????????# """" # ############ #???? | | ????????????????# # #???? | | ????????????????#####+##### % #???? | | ??????????????????# # % #???? | | ??????????????????# # ################???? | | ??????????????????# #??????????????????? | | ??????????????????# #??????????????????? | | ??????????????#???# ######## !?????????? | | ??????????????# # s = !?????????? | | ??????????????+ gg "" m * ???????????? | | ????????????????? # " * """ ?????????????? | | ???????????????? # "" @ % "T" ?????????????? | | ??????????????? ?# """ #u #???????????? | | ??????????????# ??# "" # #???????????? | | ??????????????#???#### ## # !! #???????????? | | ?????????????????????##?## !! #???????????? | | ?????????????????????????? ! ! #???????????? | | ?????????????????????????? #???????????? | | ?????????????????????????? #???????????? | | ?????????????????????????? ???????????? | | ??????????????????????????#?????####+#???????????? | | ?????????????????????????????????????????????????? | | ?????????????????????????????????????????????????? | | ?????????????????????????????????????????????????? | | ?????????????????????????????????????????????????? | | ?????????????????????????????????????????????????? | | ?????????????????????????????????????????????????? | | ?????????????????????????????????????????????????? | | ?????????????????????????????????????????????????? | | ?????????????????????????????????????????????????? | | ?????????????????????????????????????????????????? | | ?????????????????????????????????????????????????? | | ?????????????????????????????????????????????????? | | | | | | | +----------------------------------------------------+ Best States ------------- Heat Dissipation 31 Energy Generation 12 Energy Capacity 265 Matter Stores 300 Matter Capacity 300 Sight Range 16 Terrain Scan Range 14 Terrain Scan Density 10 Armor Coverage 150 Utility Shielding 33 Evasion (%) 40 Recoil Reduction 4 Offensive Hacking 10 Item Schematics ----------------- None Robot Schematics ------------------ None Fabricated ------------ Nothing Repaired ---------- Nothing Studied --------- None Alien Tech Used ----------------- None Achievements -------------- None Challenges ------------ None Game ------ Seed AmuletHeavyRailcannon Manual? 0 Play Time 00:27:48 Cumulative 17.2 hours Start 2026.09.05 @ 18:06:48 End 2026.09.05 @ 20:23:56 Sessions 3 Manual Loads 0 Difficulty Rogue Special Mode None Game No. 24 Rogue 24 Adventurer 0 Explorer 0 Win Type - Total 0 Types 0/0/0/0/0/0/0/0/0/0 Lore% 12 Gallery% 13 Achievement% 11 Wizard Run 0 Options --------- Layout 0 ASCII 0 Keyboard 0 Movement Mouse Keybinds 0 Fullscreen 2 Font 20/SmallcapsGlow Map View 96x60 Zoom Use 2% Tactical HUD 1 Map Filters NONE Filters NONE Steam 1 RUN: 68e846ce-bb00-49ff-990d-a7c36ea84982